bitfinex/quotes_SOLUSD_20250814
["timestamp","ask_amount","ask_price","bid_price","bid_amount"]
[1755191474811,1e-08,191.71,191.7,39.76574503]
[1755191474986,1e-08,191.71,191.7,24.65952946]
[1755191475187,19.44304538,191.76,191.7,5.21648408]
[1755191475404,0.7,191.76,191.72,18.74304538]
[1755191475612,0.7,191.76,191.63,54.15166754]
[1755191475816,18.74304538,191.72,191.66,18.74304538]
[1755191476019,0.7,191.75,191.59,41.10621557]
[1755191476020,41.26,191.74,191.6,5.21920668]
[1755191476206,18.74304538,191.67,191.6,5.21920668]
[1755191476407,19.44304538,191.67,191.61,18.74304538]
[1755191476716,19.44304538,191.67,191.55,0.03]
[1755191476717,18.74304538,191.62,191.55,0.03]
[1755191477015,20.32352954,191.67,191.55,0.03]
[1755191477016,41.34,191.67,191.55,0.03]
[1755191477190,0.7,191.73,191.66,18.74304538]
[1755191477515,16.353126,191.78,191.72,18.74304538]
[1755191477732,0.7,191.81,191.75,18.74304538]
[1755191478035,0.7,191.83,191.78,18.74304538]
[1755191478239,0.7,191.86,191.72,15.10621557]
[1755191478541,15.649044,191.84,191.83,18.74304538]
[1755191478723,15.649044,191.84,191.81,18.74304538]
[1755191478914,18.74304538,191.82,191.73,5.21566786]
[1755191479135,15.10621557,191.8,191.61,15.10621557]
[1755191479316,18.74304538,191.73,191.66,18.74304538]
[1755191479633,18.74304538,191.75,191.62,15.10621557]
[1755191479930,26.7,191.76,191.71,18.74304538]
[1755191480134,0.7,191.75,191.62,15.10621557]
[1755191480341,2.7179734,191.81,191.74,18.74304538]
[1755191480526,2.7179734,191.81,191.72,5.21593991]
[1755191480527,0.06,191.82,191.8,18.74304538]
[1755191480731,0.06,191.82,191.72,18.25578969]
[1755191480916,0.06,191.82,191.8,18.74304538]
[1755191481236,0.06,191.82,191.81,18.74304538]
[1755191482016,0.06,191.84,191.81,18.74304538]
[1755191482215,1e-08,191.84,191.83,33.84926095]
[1755191482449,0.06,191.95,191.87,26.0]
[1755191482626,0.06,191.95,191.94,18.74304538]
[1755191483015,0.06,191.95,191.88,15.10621557]
[1755191483307,0.06,191.95,191.94,18.74304538]
[1755191483748,0.7,192.03,192.0,18.74304538]
[1755191484054,41.7,192.08,192.02,18.74304538]
[1755191484055,42.4,192.08,192.02,18.74304538]
[1755191484344,0.06,192.11,192.08,5.20616409]
[1755191484520,0.06,192.11,192.09,18.74304538]
[1755191484719,0.06,192.11,192.08,5.20616409]
[1755191484936,0.06,192.11,192.1,18.74304538]
[1755191485452,0.06,192.13,192.08,5.20616409]
[1755191485453,0.06,192.13,192.08,18.22157433]
[1755191485666,0.06,192.13,192.12,18.74304538]
[1755191485942,0.06,192.13,192.08,5.20616409]
[1755191486117,0.06,192.13,192.08,18.22157433]
[1755191486321,0.06,192.13,192.12,5.20508015]
[1755191486516,0.06,192.13,192.12,23.94812553]
[1755191486747,0.06,192.13,192.12,29.75726897]
[1755191486950,0.06,192.13,192.02,10.0]
[1755191487122,0.06,192.13,192.08,24.55218882]
[1755191487439,25.25218882,192.12,192.05,24.55218882]
[1755191487765,0.06,192.13,192.07,24.55218882]
[1755191488047,0.76,192.13,192.04,24.55218882]
[1755191488220,24.55218882,192.1,192.03,24.55218882]
[1755191488415,25.25218882,192.1,192.04,24.55218882]
[1755191488635,0.06,192.13,192.09,24.55218882]
[1755191488864,0.06,192.13,192.08,0.5206164]
[1755191489143,0.06,192.13,192.11,24.55218882]
[1755191489343,0.06,192.13,192.12,24.55218882]
[1755191489645,0.06,192.13,192.09,26.0]
[1755191489842,0.06,192.13,192.05,67.8]
[1755191489843,0.7,192.12,192.05,67.8]
[1755191490146,0.7,192.12,192.05,26.0]
[1755191490445,5.20697734,192.05,191.99,24.55218882]
[1755191490619,30.40916616,192.05,191.99,24.55218882]
[1755191490940,0.65,192.1,191.99,26.0]
[1755191491141,0.65,192.1,192.01,24.55218882]
[1755191491447,24.55218882,192.06,192.0,24.55218882]
[1755191491617,18.21778054,192.12,192.0,24.55218882]
[1755191491822,18.21778054,192.12,192.02,24.55218882]
[1755191491823,0.65,192.11,192.02,24.55218882]
[1755191492024,0.65,192.11,191.97,25.62713029]
[1755191492327,24.55218882,192.0,191.91,15.10621557]
[1755191492544,24.55218882,191.98,191.91,24.55218882]
[1755191492851,0.65,191.99,191.88,41.98]
[1755191492852,24.55218882,191.97,191.88,41.98]
[1755191493063,0.65,191.99,191.91,24.55218882]
[1755191493350,0.65,191.99,191.89,24.55218882]
[1755191493555,24.55218882,191.98,191.91,24.55218882]
[1755191493866,24.55218882,191.98,191.88,41.98]
[1755191494060,24.55218882,191.98,191.92,24.55218882]
[1755191494541,24.55218882,191.96,191.88,41.98]
[1755191494743,30.41133608,191.97,191.91,24.55218882]
[1755191494944,0.65,191.97,191.92,24.55218882]
[1755191495123,5.20883496,191.99,191.94,24.55218882]
[1755191495313,5.85883496,191.99,191.93,24.55218882]
[1755191495522,5.85883496,191.99,191.88,47.19156084]
[1755191495523,0.65,191.99,191.94,24.55218882]
[1755191495715,0.65,192.03,191.96,24.55218882]
[1755191495944,0.65,192.03,191.94,24.55218882]
[1755191495945,24.55218882,192.0,191.94,24.55218882]
[1755191496126,24.55218882,191.97,191.91,24.55218882]
[1755191496327,24.55218882,191.95,191.88,41.98]
[1755191496527,24.55218882,191.93,191.88,41.98]
[1755191496835,0.65,191.93,191.88,66.53218882]
[1755191497040,0.65,191.92,191.88,41.98]
[1755191497547,0.65,191.92,191.88,66.53218882]
[1755191497753,25.20218882,191.97,191.9,24.55218882]
[1755191498330,25.20218882,191.97,191.91,24.55218882]
[1755191498566,0.65,191.97,191.91,24.55218882]
[1755191498853,0.65,192.0,191.94,24.55218882]
[1755191499161,5.85751965,192.03,191.97,24.55218882]
[1755191499456,24.55218882,192.02,191.96,24.55218882]
[1755191499659,0.65,192.03,191.99,24.55218882]
[1755191500152,0.65,192.02,191.98,24.55218882]
[1755191500355,0.65,192.05,191.94,42.04]
[1755191500566,5.85699593,192.05,192.0,24.55218882]
[1755191500858,5.20562207,192.1,192.01,24.55218882]
[1755191501167,5.20562207,192.1,192.05,24.55218882]
[1755191501369,24.55218882,192.06,192.0,24.55218882]
[1755191501529,24.55218882,192.03,191.96,42.02]
[1755191501733,0.65,192.02,191.94,24.55218882]
[1755191501932,24.55218882,192.0,191.94,24.55218882]
[1755191502430,29.76079343,191.99,191.91,42.05]
[1755191502662,0.65,192.0,191.95,24.55218882]
[1755191502842,5.85841451,192.0,191.95,24.55218882]
[1755191503035,25.20218882,191.99,191.93,24.55218882]
[1755191503368,25.20218882,191.99,191.91,42.05]
[1755191503369,0.65,191.99,191.91,42.05]
[1755191503540,25.20218882,191.99,191.92,24.55218882]
[1755191503856,25.20218882,191.99,191.91,42.05]
[1755191504037,0.65,191.98,191.91,0.03]
[1755191504248,24.55218882,191.96,191.91,0.03]
[1755191504557,0.65,191.95,191.91,0.03]
[1755191504735,29.76099189,191.99,191.93,24.55218882]
[1755191504930,0.65,192.0,191.94,24.55218882]
[1755191505143,0.65,192.0,191.96,24.55218882]
[1755191505551,30.40972583,192.03,191.97,24.55218882]
[1755191505754,0.65,192.03,191.98,24.55218882]
[1755191506238,0.65,192.02,191.98,24.55218882]
[1755191506763,30.40898733,192.06,192.0,24.55218882]
[1755191507441,24.55218882,192.04,191.97,24.55218882]
[1755191507679,24.55218882,191.98,191.91,0.03]
[1755191507861,24.55218882,191.94,191.91,0.03]
[1755191508169,24.55218882,191.95,191.91,0.03]
[1755191508383,0.65,191.98,191.93,24.55218882]
[1755191508677,18.76083126,191.97,191.91,18.79083126]
[1755191508850,18.76083126,191.95,191.91,0.03]
[1755191509373,0.65,191.94,191.91,0.03]
[1755191509672,0.65,191.93,191.91,0.03]
[1755191509879,0.65,191.92,191.91,0.03]
[1755191510048,0.65,191.96,191.91,0.03]
[1755191510361,19.41083126,191.95,191.91,0.03]
[1755191510757,44.20133489,192.0,191.91,0.03]
[1755191510758,18.76083126,191.98,191.92,18.76083126]
[1755191511068,0.65,192.0,191.94,18.76083126]
[1755191511271,0.65,192.0,191.95,18.76083126]
[1755191511475,0.65,191.99,191.95,18.76083126]
[1755191512355,18.76083126,192.0,191.94,18.76083126]
[1755191512675,18.76083126,191.96,191.91,0.03]
[1755191512878,23.96997852,191.97,191.91,18.79083126]
[1755191513067,24.61997852,191.97,191.91,18.79083126]
[1755191513477,23.96997852,191.97,191.91,0.03]
[1755191513646,18.76083126,191.92,191.91,0.03]
[1755191513850,19.41083126,191.92,191.91,0.03]
[1755191514372,18.76083126,191.94,191.91,0.03]
[1755191514681,0.65,191.93,191.91,0.03]
[1755191514849,23.97079366,191.94,191.91,0.03]
[1755191515050,19.41083126,191.92,191.91,0.03]
[1755191515975,0.65,191.92,191.91,0.03]
[1755191516177,19.41083126,191.92,191.91,0.03]
[1755191516549,19.41083126,191.92,191.89,0.03]
[1755191516550,5.21077588,191.91,191.89,0.03]
[1755191516750,19.41083126,191.9,191.89,0.03]
[1755191517055,0.65,191.9,191.89,0.03]
[1755191517255,19.41083126,191.9,191.89,0.03]
[1755191518773,24.62187868,191.9,191.89,0.03]
[1755191519076,41.74,191.91,191.89,0.03]
[1755191519282,19.41083126,191.9,191.89,0.03]
[1755191519477,0.65,191.9,191.89,0.03]
[1755191519860,41.74,191.91,191.89,0.03]
[1755191520187,47.60082222,191.91,191.89,0.03]
[1755191520362,19.41083126,191.9,191.89,0.03]
[1755191520850,0.67,191.94,191.89,18.79083126]
[1755191521054,0.67,191.94,191.9,18.76083126]
[1755191521251,0.67,191.93,191.89,18.79083126]
[1755191521563,41.64,191.96,191.92,18.76083126]
[1755191521884,41.64,191.96,191.93,18.76083126]
[1755191522057,41.62,192.0,191.95,18.76083126]
[1755191522254,42.29,192.0,191.95,23.97039508]
[1755191522472,18.76083126,192.04,191.98,18.76083126]
[1755191522679,66.25805496,192.05,191.95,5.20956382]
[1755191522995,0.67,192.05,192.0,18.76083126]
[1755191523180,0.67,192.05,192.01,18.76083126]
[1755191523498,18.76083126,192.07,192.01,18.76083126]
[1755191523670,18.76083126,192.08,192.01,18.76083126]
[1755191523992,19.43083126,192.09,192.03,18.76083126]
[1755191524169,41.66,192.13,192.03,15.10621557]
[1755191524376,0.06,192.13,192.09,18.76083126]
[1755191524591,18.76083126,192.12,192.03,5.20751965]
[1755191524794,0.06,192.13,192.03,5.20751965]
[1755191524795,18.76083126,192.09,192.03,18.76083126]
[1755191524969,0.67,192.1,192.04,18.76083126]
[1755191525291,0.06,192.11,192.06,18.76083126]
[1755191525496,0.06,192.11,192.07,18.76083126]
[1755191525689,0.73,192.11,192.07,18.76083126]
[1755191525985,0.06,192.11,192.01,15.10621557]
[1755191526186,0.06,192.11,192.1,18.76083126]
[1755191526554,0.73,192.11,192.05,5.20697734]
[1755191526801,0.73,192.11,192.05,18.76083126]
[1755191527096,0.73,192.11,192.06,18.76083126]
[1755191527296,0.73,192.11,192.07,18.76083126]
[1755191527461,0.06,192.11,192.09,18.76083126]
[1755191527668,0.06,192.11,192.1,18.76083126]
[1755191527857,1e-08,192.11,192.1,33.86704683]
[1755191528087,1e-08,192.13,192.12,41.10621557]
[1755191528287,0.06,192.17,192.13,20.31102481]
[1755191528492,38.15,192.16,192.07,15.47]
[1755191528801,38.15,192.16,191.88,18.76083126]
[1755191528802,37.52166252,192.08,191.88,18.76083126]
[1755191529093,18.76083126,192.02,191.93,18.76083126]
[1755191529281,44.22045383,192.01,191.93,0.7]
[1755191529487,0.52045383,192.01,191.92,18.76083126]
[1755191529791,43.96,192.0,191.89,0.73]
[1755191529994,18.76083126,191.94,191.89,0.03]
[1755191530161,26.0,191.87,191.85,0.03]
[1755191530361,25.07341893,191.86,191.85,1e-08]
[1755191530585,25.07341893,191.86,191.7,0.7]
[1755191530586,26.0,191.83,191.7,0.7]
[1755191530780,18.76083126,191.74,191.7,0.7]
[1755191531105,18.76083126,191.74,191.69,1e-08]
[1755191531106,18.76083126,191.72,191.69,1e-08]
[1755191531275,44.76083126,191.7,191.48,10.0]
[1755191531585,18.76083126,191.65,191.62,1e-08]
[1755191531796,0.52045383,191.66,191.62,1e-08]
[1755191531995,44.36,191.65,191.63,0.7]
[1755191532162,0.52045383,191.7,191.62,18.76083127]
[1755191532361,37.48,191.79,191.68,18.76083126]
[1755191532362,18.76083126,191.75,191.68,18.76083126]
[1755191532676,18.76083126,191.69,191.62,0.70000001]
[1755191532876,18.76083126,191.67,191.62,0.70000001]
[1755191533181,44.48,191.67,191.62,1e-08]
[1755191533385,63.24083126,191.67,191.62,1e-08]
[1755191533578,44.46,191.67,191.63,0.7]
[1755191533785,63.22083126,191.67,191.63,0.7]
[1755191533970,44.44,191.67,191.63,0.7]
[1755191534290,44.44,191.67,191.62,5.21860485]
[1755191534291,44.44,191.67,191.64,0.7]
[1755191534488,0.52045383,191.74,191.65,24.67867629]
[1755191534690,44.42,191.71,191.65,18.9624576]
[1755191534866,63.16083126,191.73,191.66,18.76083126]
[1755191535063,44.92045383,191.74,191.65,24.67867629]
[1755191535366,44.92045383,191.74,191.66,18.76083126]
[1755191535582,18.76083126,191.73,191.66,18.76083126]
[1755191535765,44.92045383,191.74,191.65,5.21784503]
[1755191535965,18.76083126,191.66,191.63,5.21825149]
[1755191536164,18.76083126,191.65,191.63,5.21825149]
[1755191536364,63.68128509,191.66,191.63,5.24825149]
[1755191536694,63.16083126,191.66,191.63,5.24825149]
[1755191537161,44.4,191.66,191.63,5.94825149]
[1755191537364,0.52045383,191.71,191.63,5.24825149]
[1755191537588,0.52045383,191.71,191.63,0.03]
[1755191537589,18.76083126,191.64,191.63,0.03]
[1755191537967,0.52045383,191.64,191.63,0.03]
[1755191538172,19.28128509,191.64,191.63,0.03]
[1755191538668,44.36,191.66,191.63,0.03]
[1755191539506,0.52045383,191.71,191.64,0.7]
[1755191539672,44.84045383,191.73,191.64,0.7]
[1755191539879,18.76083126,191.76,191.7,18.76083126]
[1755191540077,0.52045383,191.75,191.69,18.76083126]
[1755191540278,18.76083126,191.75,191.68,0.7]
[1755191540475,18.76083126,191.74,191.69,5.21675622]
[1755191540781,44.32,191.76,191.7,19.46083126]
[1755191540968,18.76083126,191.73,191.69,5.21675622]
[1755191541162,44.32,191.76,191.7,19.46083126]
[1755191541378,19.28128509,191.76,191.7,0.7]
[1755191541688,18.76083126,191.77,191.7,19.46083126]
[1755191541896,18.76083126,191.75,191.7,0.7]
[1755191542268,0.52045383,191.79,191.71,19.46083126]
[1755191542490,19.28128509,191.79,191.73,5.21566786]
[1755191542699,0.52045383,191.79,191.73,5.21566786]
[1755191542909,18.76083126,191.77,191.73,5.21566786]
[1755191543198,18.76083126,191.79,191.74,0.7]
[1755191543503,18.76083126,191.79,191.75,0.7]
[1755191543712,0.52045383,191.8,191.75,0.7]
[1755191543879,18.76083126,191.8,191.75,0.7]
[1755191544080,18.76083126,191.82,191.76,0.7]
[1755191544280,19.28128509,191.82,191.76,0.7]
[1755191544599,19.28128509,191.82,191.73,18.25483752]
[1755191544600,18.76083126,191.79,191.77,5.21457996]
[1755191544768,18.76083126,191.81,191.77,5.21457996]
[1755191544972,18.76083126,191.8,191.77,5.21457996]
[1755191545183,18.76083126,191.78,191.74,5.21539584]
[1755191545388,18.76083126,191.77,191.74,5.21539584]
[1755191545903,18.76083126,191.75,191.71,5.21621198]
[1755191546112,18.76083126,191.75,191.66,0.7]
[1755191546113,18.76083126,191.72,191.66,0.7]
[1755191546320,0.52045383,191.74,191.66,19.46083126]
[1755191546609,19.83783905,192.19,191.63,0.03]
[1755191546610,0.52045383,191.79,191.73,18.76083126]
[1755191546910,18.76083126,191.84,191.77,18.76083126]
[1755191547107,0.58045383,191.83,191.78,18.76083126]
[1755191547324,0.06,191.83,191.8,18.76083126]
[1755191547499,0.06,191.83,191.81,18.76083126]
[1755191547685,0.06,191.83,191.81,0.7]
[1755191547883,0.06,191.83,191.77,18.76083126]
[1755191548109,0.06,191.83,191.79,18.76083126]
[1755191548311,44.72045383,191.85,191.82,18.76083126]
[1755191548312,0.06,191.85,191.82,18.76083126]
[1755191548615,18.76083126,191.97,191.84,23.97350849]
[1755191548788,0.52045383,191.96,191.85,0.7]
[1755191548987,0.52045383,191.96,191.91,18.76083126]
[1755191549185,0.52045383,191.96,191.9,18.76083126]
[1755191549386,0.52045383,191.96,191.89,0.7]
[1755191549587,0.52045383,191.98,191.92,18.76083126]
[1755191549787,0.52045383,191.99,191.93,18.76083126]
[1755191550012,44.16,192.0,191.95,18.76083126]
[1755191550213,18.76083126,192.04,191.97,18.76083126]
[1755191550420,0.52045383,192.03,191.96,0.7]
[1755191550717,19.34128509,192.05,191.99,18.76083126]
[1755191550920,0.06,192.05,192.02,18.76083126]
[1755191551130,0.06,192.05,192.01,18.76083126]
[1755191551513,0.06,192.05,192.02,18.76083126]
[1755191551811,0.06,192.05,192.01,0.66]
[1755191552011,0.06,192.05,191.98,0.52088759]
[1755191552210,0.06,192.05,192.04,18.76083126]
[1755191552522,0.06,192.05,192.04,24.62807974]
[1755191552816,0.06,192.05,192.04,5.20724848]
[1755191553030,0.06,192.05,191.97,26.04573631]
[1755191553031,0.06,192.05,192.02,5.20753141]
[1755191553202,0.06,192.05,192.02,5.86753141]
[1755191553390,0.06,192.05,192.03,19.42083126]
[1755191553888,0.06,192.05,192.02,5.20753141]
[1755191554086,18.76083126,192.04,191.98,18.76083126]
[1755191554318,18.76083126,192.02,191.97,5.20914726]
[1755191554491,18.76083126,192.02,191.92,44.02]
[1755191554492,18.76083126,191.99,191.93,23.97106415]
[1755191554989,18.76083126,192.0,191.94,18.76083126]
[1755191555190,1.10045383,192.02,191.94,18.76083126]
[1755191555411,18.76083126,192.0,191.94,18.76083126]
[1755191555615,18.76083126,192.01,191.94,18.76083126]
[1755191555817,0.52045383,192.04,191.97,18.76083126]
[1755191556011,0.52045383,192.04,191.99,18.76083126]
[1755191556194,0.06,192.05,191.93,18.23581513]
[1755191556392,18.76083126,192.01,191.95,18.76083126]
[1755191556624,18.76083126,192.02,191.96,36.99379645]
[1755191556792,0.58045383,192.05,191.98,18.76083126]
[1755191556994,0.06,192.05,192.02,18.76083126]
[1755191557196,4.4,192.03,192.02,0.66]
[1755191557393,4.4,192.03,192.02,19.42083126]
[1755191557610,0.06,192.05,192.02,19.42083126]
[1755191557815,0.06,192.05,192.03,18.76083126]
[1755191557994,0.06,192.05,192.02,19.42083126]
[1755191558418,18.82083126,192.05,191.99,0.66]
[1755191558628,18.82083126,192.05,191.96,18.23296519]
[1755191558629,18.76083126,192.02,191.97,5.20914726]
[1755191558803,18.76083126,192.03,191.97,23.96997852]
[1755191559003,0.52045383,192.04,191.97,23.96997852]
[1755191559216,18.76083126,192.03,191.97,23.96997852]
[1755191559419,0.52045383,192.02,191.92,23.97133563]
[1755191559609,18.76083126,192.01,191.95,18.76083126]
[1755191559915,18.76083126,191.99,191.93,18.76083126]
[1755191560127,0.52045383,191.98,191.92,23.97133563]
[1755191560315,18.76083126,192.0,191.94,18.76083126]
[1755191560623,0.52045383,192.02,191.97,18.76083126]
[1755191560814,18.76083126,192.04,191.98,18.76083126]
[1755191561126,18.76083126,191.99,191.93,18.76083126]
[1755191561328,18.76083126,192.01,191.95,18.76083126]
[1755191561503,0.52045383,192.0,191.96,18.76083126]
[1755191561698,0.52045383,192.0,191.96,19.42083126]
[1755191562013,18.82083126,192.05,191.99,18.76083126]
[1755191562220,18.76083126,192.03,191.92,26.0]
[1755191562421,0.52045383,192.02,191.96,18.76083126]
[1755191562601,18.76083126,192.0,191.85,92.86202762]
[1755191562920,0.64,192.05,191.92,18.76083126]
[1755191562921,18.76083126,191.98,191.92,18.76083126]
[1755191563125,0.52045383,192.03,191.96,18.76083126]
[1755191563325,18.76083126,192.01,191.94,18.76083126]
[1755191563627,18.76083126,191.95,191.89,18.76083126]
[1755191563948,43.82,191.96,191.91,18.76083126]
[1755191564299,0.52045383,192.0,191.95,18.76083126]
[1755191564502,0.52045383,192.01,191.96,18.76083126]
[1755191564812,43.76,192.01,191.98,18.76083126]
[1755191565018,43.76,192.01,191.97,23.96997852]
[1755191565216,43.76,192.01,191.98,18.76083126]
[1755191565435,18.76083126,191.99,191.94,5.20996144]
[1755191565917,19.28128509,192.0,191.94,23.9707927]
[1755191566233,43.74,192.01,191.97,18.76083126]
[1755191566531,0.52045383,192.03,191.99,18.76083126]
[1755191566705,44.26045383,192.04,191.99,5.20860461]
[1755191567037,43.74,192.04,191.99,5.86860461]
[1755191567327,43.78,192.05,192.02,18.76083126]
[1755191567531,43.78,192.05,192.02,19.42083126]
[1755191567697,0.06,192.05,192.03,18.76083126]
[1755191567900,0.06,192.05,192.02,18.76083126]
[1755191568097,0.06,192.05,192.03,19.42083126]
[1755191568325,0.06,192.05,192.02,18.76083126]
[1755191568732,0.06,192.05,192.03,23.96835091]
[1755191568941,0.06,192.05,192.04,19.42083126]
[1755191569411,0.06,192.05,192.04,18.76083126]
[1755191569605,0.06,192.05,191.97,0.66]
[1755191569811,18.76083126,192.03,191.97,0.66]
[1755191570050,19.28128509,192.02,191.97,5.20914726]
[1755191570209,43.58,192.04,191.97,23.96997852]
[1755191570210,0.52045383,192.03,191.97,23.96997852]
[1755191570548,18.82083126,192.05,191.99,18.76083126]
[1755191570712,43.56,192.04,192.0,5.20833333]
[1755191571123,43.54,192.04,192.01,19.42083126]
[1755191571332,43.54,192.04,192.01,18.76083126]
[1755191571515,43.54,192.04,192.0,36.98999792]
[1755191571713,43.54,192.04,192.0,5.20833333]
[1755191571932,43.54,192.04,192.0,23.96916459]
[1755191572231,43.54,192.04,192.0,24.62916459]
[1755191573026,43.54,192.04,192.0,5.86833333]
[1755191573228,43.54,192.04,192.0,24.62916459]
[1755191574643,43.54,192.04,192.01,18.76083126]
[1755191574942,43.54,192.04,192.02,19.42083126]
[1755191575651,0.06,192.05,192.03,5.20751965]
[1755191576131,0.06,192.05,192.03,5.86751965]
[1755191576322,0.06,192.05,192.03,23.96835091]
[1755191576527,0.06,192.05,192.04,19.42083126]
[1755191576942,0.06,192.05,192.03,5.20751965]
[1755191577153,0.06,192.05,192.0,13.02083333]
[1755191577154,0.06,192.05,192.02,5.20773496]
[1755191577654,0.06,192.05,192.01,5.20806208]
[1755191577851,0.06,192.05,192.01,23.96889334]
[1755191578026,18.76083126,192.02,191.97,5.20914726]
[1755191578451,43.18,192.02,191.97,24.62997852]
[1755191578654,43.16,192.03,191.98,19.42083126]
[1755191578844,4.4,192.04,192.0,18.76083126]
[1755191579049,4.4,192.04,192.01,18.76083126]
[1755191579230,43.2,192.05,192.0,18.76083126]
[1755191579432,18.76083126,192.01,191.95,5.20949837]
[1755191579746,61.88083126,192.0,191.94,23.9707927]
[1755191579939,43.12,192.0,191.95,18.76083126]
[1755191580253,43.12,192.0,191.96,19.42083126]
[1755191580435,43.1,192.01,191.94,18.23486505]
[1755191580634,43.1,192.01,191.97,18.76083126]
[1755191580855,0.06,192.05,192.0,18.76083126]
[1755191581155,0.06,192.05,192.04,18.76083126]
[1755191581467,0.06,192.05,191.94,44.28467228]
[1755191581754,0.06,192.05,192.03,18.76083126]
[1755191581930,0.06,192.05,192.04,18.76083126]
[1755191582133,0.06,192.07,192.04,19.46083126]
[1755191582332,0.06,192.11,192.06,18.76083126]
[1755191582639,0.06,192.17,192.1,44.76083126]
[1755191582841,0.06,192.17,192.11,0.7]
[1755191583035,0.06,192.17,192.14,18.76083126]
[1755191583353,0.06,192.17,192.11,0.7]
[1755191583558,0.06,192.17,192.16,18.76083126]
[1755191583861,1e-08,192.24,192.18,23.9640232]
[1755191584066,19.2812851,192.24,192.18,23.9640232]
[1755191584241,0.52045384,192.24,192.18,36.97266093]
[1755191584636,1e-08,192.24,192.19,18.76083126]
[1755191584853,18.76083126,192.22,192.18,5.20319194]
[1755191585134,18.76083126,192.23,192.18,5.20319194]
[1755191585331,1e-08,192.24,192.19,18.76083126]
[1755191585534,1e-08,192.24,192.2,0.7]
[1755191585740,1e-08,192.24,192.21,5.20264294]
[1755191585955,1e-08,192.24,192.21,23.9634742]
[1755191586261,1e-08,192.24,192.23,18.76083126]
[1755191586476,1e-08,192.24,192.23,19.46083126]
[1755191587134,0.2,192.25,192.23,19.46083126]
[1755191587135,1e-08,192.25,192.23,19.46083126]
[1755191587336,1e-08,192.25,192.22,18.76083126]
[1755191587559,1e-08,192.25,192.23,19.46083126]
[1755191587764,1e-08,192.25,192.24,5.20183104]
[1755191588133,1e-08,192.25,192.23,5.20207619]
[1755191588338,1e-08,192.25,192.23,5.90207619]
[1755191588554,1e-08,192.25,192.24,18.76083126]
[1755191588760,1e-08,192.25,192.24,19.46083126]
[1755191589266,1e-08,192.25,192.23,5.20207619]
[1755191589467,1e-08,192.25,192.24,18.76083126]
[1755191589757,1e-08,192.25,192.24,24.6626623]
[1755191589960,1e-08,192.25,192.22,5.20237228]
[1755191590541,1e-08,192.25,192.22,24.66320354]
[1755191590952,1e-08,192.25,192.24,18.76083126]
[1755191591153,1e-08,192.25,192.24,19.46083126]
[1755191591360,1e-08,192.25,192.24,0.7]
[1755191591547,1e-08,192.25,192.24,19.46083126]
[1755191591752,1e-08,192.25,192.24,23.9626623]
[1755191592050,1e-08,192.25,192.24,5.20183104]
[1755191592962,1e-08,192.25,192.24,23.9626623]
[1755191593162,1e-08,192.25,192.24,24.6626623]
[1755191593752,1e-08,192.25,192.24,5.20183104]
[1755191594065,1e-08,192.25,192.22,5.20237228]
[1755191594868,18.76083126,192.24,192.19,5.20318434]
[1755191595869,18.76083126,192.2,192.14,18.76083126]
[1755191596188,41.10621558,192.25,192.13,13.01202156]
[1755191596189,19.28128509,192.24,192.18,18.76083126]
[1755191596476,26.00000001,192.25,192.2,18.76083126]
[1755191596770,1e-08,192.25,192.21,18.76083126]
[1755191596945,19.2812851,192.25,192.17,0.7]
[1755191597149,18.76083126,192.24,192.18,18.76083126]
[1755191597357,0.52045384,192.25,192.19,18.76083126]
[1755191597960,0.52045384,192.25,192.2,5.20291363]
[1755191597961,19.2812851,192.25,192.2,5.20291363]
[1755191598271,18.76083126,192.23,192.2,5.20291363]
[1755191598455,19.34083126,192.24,192.2,5.20291363]
[1755191598661,18.76083126,192.24,192.2,5.20291363]
[1755191598859,18.76083127,192.25,192.2,5.20291363]
[1755191599062,1e-08,192.25,192.2,24.66374489]
[1755191599259,1e-08,192.25,192.2,23.96374489]
[1755191599460,1e-08,192.25,192.21,18.76083126]